bitfinex-derivatives/quotes_SOLF0:USTF0_20250507
["timestamp","ask_amount","ask_price","bid_price","bid_amount"]
[1746637033093,7.82218194,146.32,146.26,29.64]
[1746637033494,6.8352,146.28,146.26,29.64]
[1746637034096,6.8352,146.28,146.26,36.4758]
[1746637035191,6.8356,146.27,146.26,29.64]
[1746637035793,2.0403,146.33,146.26,37.46218194]
[1746637036000,2.0403,146.33,146.29,7.82218194]
[1746637036390,8.8734,146.33,146.29,14.65668194]
[1746637036688,2.0403,146.33,146.29,14.65668194]
[1746637036896,2.0403,146.33,146.29,7.82218194]
[1746637037391,6.8324,146.34,146.29,7.82218194]
[1746637037798,6.8324,146.34,146.27,4.2727]
[1746637038101,6.8324,146.34,146.31,6.8334]
[1746637040097,6.8324,146.34,146.32,6.8332]
[1746637040496,6.8324,146.34,146.3,29.6]
[1746637040700,6.8321,146.35,146.3,29.6]
[1746637041300,6.8324,146.34,146.3,29.6]
[1746637042002,6.8324,146.34,146.31,6.8334]
[1746637043003,6.8324,146.34,146.32,6.8333]
[1746637043205,6.8321,146.35,146.32,6.8333]
[1746637044407,6.8323,146.34,146.32,6.8333]
[1746637045104,6.8323,146.34,146.31,6.8336]
[1746637046103,29.6,146.37,146.3,29.6]
[1746637046308,6.833,146.33,146.3,29.6]
[1746637046508,29.6,146.37,146.3,29.6]
[1746637046709,41.81755049,146.37,146.27,29.56]
[1746637047410,6.8343,146.3,146.28,6.8351]
[1746637048005,6.8337,146.31,146.28,6.8351]
[1746637048910,6.8337,146.31,146.29,6.8346]
[1746637049311,6.8335,146.32,146.29,6.8346]
[1746637050213,6.833,146.33,146.3,6.8341]
[1746637050409,6.833,146.33,146.27,29.56]
[1746637050605,29.6,146.37,146.27,29.56]
[1746637050810,6.8314,146.36,146.34,6.8321]
[1746637051414,6.8314,146.36,146.33,6.8326]
[1746637052117,6.8314,146.36,146.34,6.8323]
[1746637052318,6.8314,146.36,146.31,29.56]
[1746637052917,6.8321,146.35,146.31,36.3934]
[1746637054120,6.8324,146.34,146.31,36.3934]
[1746637054317,29.6,146.37,146.31,29.56]
[1746637055412,6.8338,146.31,146.29,6.8344]
[1746637055916,6.8335,146.32,146.29,6.8344]
[1746637056416,6.8335,146.32,146.3,6.8341]
[1746637057319,6.8327,146.34,146.28,31.5514]
[1746637057716,29.6,146.37,146.28,31.5514]
[1746637057917,6.8326,146.34,146.31,6.8335]
[1746637058218,6.8326,146.34,146.28,31.5514]
[1746637059216,6.8326,146.34,146.31,6.8335]
[1746637059419,6.8328,146.33,146.31,6.8335]
[1746637061917,29.6,146.37,146.31,6.8335]
[1746637062524,6.8325,146.34,146.31,6.8335]
[1746637062823,6.8325,146.34,146.32,6.8332]
[1746637064324,6.8325,146.34,146.31,6.8335]
[1746637064523,6.8325,146.34,146.28,31.5514]
[1746637064725,6.8325,146.34,146.32,6.8333]
[1746637064924,6.8331,146.33,146.28,31.5514]
[1746637065434,6.8325,146.34,146.28,31.5514]
[1746637066432,6.8328,146.33,146.31,6.8334]
[1746637069234,6.8326,146.34,146.31,6.8334]
[1746637069536,6.8326,146.34,146.32,6.8332]
[1746637069727,6.8326,146.34,146.28,31.5514]
[1746637069929,6.8326,146.34,146.31,6.8333]
[1746637071239,6.8326,146.34,146.32,6.8332]
[1746637071434,6.8326,146.34,146.28,31.5514]
[1746637071840,6.8326,146.34,146.32,6.8331]
[1746637072139,29.6,146.37,146.28,31.5514]
[1746637073239,6.8325,146.34,146.32,6.833]
[1746637074340,6.8329,146.33,146.31,6.8335]
[1746637075540,6.8326,146.34,146.32,6.8333]
[1746637080149,6.8328,146.33,146.31,6.8335]
[1746637080547,29.6,146.37,146.3,29.56]
[1746637080847,6.8325,146.34,146.32,6.8333]
[1746637084249,6.8328,146.33,146.31,6.8335]
[1746637085045,6.8328,146.33,146.3,36.3939]
[1746637085250,6.8333,146.32,146.3,36.3939]
[1746637085446,7.81882383,146.33,146.27,29.56]
[1746637085954,6.834,146.31,146.28,6.8348]
[1746637088050,6.8343,146.3,146.28,6.8348]
[1746637089249,6.8343,146.3,146.27,36.3954]
[1746637090553,6.8343,146.3,146.28,6.8351]
[1746637091551,6.8343,146.3,146.27,36.3953]
[1746637091752,6.8343,146.3,146.27,29.56]
[1746637092152,6.8343,146.3,146.28,6.8349]
[1746637101257,6.8343,146.3,146.27,36.3953]
[1746637101654,6.8351,146.28,146.27,29.56]
[1746637101860,6.8351,146.28,146.24,622.0822]
[1746637102758,6.8351,146.28,146.26,6.8359]
[1746637104855,6.8351,146.28,146.25,6.8363]
[1746637105357,6.8356,146.27,146.25,6.8363]
[1746637105561,33.9528,146.32,146.24,29.56]
[1746637106260,33.9528,146.32,146.24,36.397]
[1746637106561,33.9528,146.32,146.24,29.56]
[1746637107657,6.8345,146.3,146.27,6.8354]
[1746637107962,6.8345,146.3,146.25,7.82373391]
[1746637108158,6.8345,146.3,146.27,6.8352]
[1746637108662,6.8348,146.29,146.26,6.8358]
[1746637109962,6.8353,146.28,146.26,6.8358]
[1746637110152,7.82373391,146.3,146.24,29.56]
[1746637110662,6.8358,146.27,146.24,36.3967]
[1746637111263,6.835,146.29,146.24,29.56]
[1746637111757,6.835,146.29,146.26,6.836]
[1746637112160,6.8354,146.28,146.24,29.56]
[1746637112364,6.8354,146.28,146.25,6.8362]
[1746637112860,6.8356,146.27,146.25,6.8362]
[1746637114567,6.8356,146.27,146.24,36.3968]
[1746637114864,6.8361,146.26,146.24,36.3968]
[1746637115067,7.82373391,146.3,146.24,36.3968]
[1746637115259,6.8358,146.27,146.24,36.3968]
[1746637115566,7.82373391,146.3,146.25,6.8363]
[1746637115762,33.9528,146.32,146.24,29.56]
[1746637116161,33.9528,146.32,146.27,6.8353]
[1746637116363,6.8349,146.29,146.27,6.8353]
[1746637116970,6.8349,146.29,146.26,6.8358]
[1746637117468,33.9528,146.32,146.25,6.8364]
[1746637117671,33.9528,146.32,146.24,29.56]
[1746637118370,6.8356,146.27,146.25,6.8365]
[1746637120870,6.8361,146.26,146.24,36.3968]
[1746637121071,46.17786174,146.32,146.24,36.3968]
[1746637122770,6.8359,146.27,146.24,36.3968]
[1746637123573,6.8359,146.27,146.25,6.8365]
[1746637123773,6.8359,146.27,146.24,29.56]
[1746637124077,6.8359,146.27,146.24,36.3968]
[1746637125674,6.8361,146.26,146.24,36.3968]
[1746637128080,33.9528,146.32,146.25,6.8365]
[1746637128375,33.9528,146.32,146.24,29.56]
[1746637128975,6.8358,146.27,146.24,36.3967]
[1746637129874,33.9528,146.32,146.24,36.3967]
[1746637130079,6.8361,146.26,146.24,36.3967]
[1746637130479,6.8361,146.26,146.24,29.56]
[1746637130682,6.8365,146.25,146.24,29.56]
[1746637130981,6.8365,146.25,146.21,29.54]
[1746637131181,6.8365,146.25,146.22,144.66661177]
[1746637131676,6.8365,146.25,146.22,6.8376]
[1746637132072,6.8368,146.25,146.22,6.8377]
[1746637133385,6.837,146.24,146.22,6.8377]
[1746637133580,12.22506174,146.3,146.22,6.8377]
[1746637134983,6.8368,146.25,146.22,6.8377]
[1746637135385,6.8368,146.25,146.23,6.8374]
[1746637136988,6.8362,146.26,146.23,6.8372]
[1746637137388,6.8362,146.26,146.21,29.54]
[1746637137886,6.8358,146.27,146.21,29.54]
[1746637138187,29.54,146.28,146.21,29.54]
[1746637138584,6.8358,146.27,146.25,6.8363]
[1746637139685,6.8358,146.27,146.24,6.8368]
[1746637139990,6.8361,146.26,146.24,6.8368]
[1746637140688,6.8358,146.27,146.24,6.8368]
[1746637142892,6.8358,146.27,146.25,6.8365]
[1746637143992,6.8358,146.27,146.24,6.8367]
[1746637145292,6.8363,146.26,146.24,6.8367]
[1746637146094,6.8363,146.26,146.23,6.8372]
[1746637146595,6.8366,146.25,146.23,6.8372]
[1746637146896,6.837,146.25,146.22,6.8378]
[1746637147095,7.82657101,146.27,146.22,6.8378]
[1746637147697,6.8368,146.25,146.23,6.8374]
[1746637148096,6.8363,146.26,146.23,6.8374]
[1746637149095,14.66247101,146.27,146.24,6.837]
[1746637149298,29.54,146.28,146.21,37.36657101]
[1746637149599,7.82657101,146.29,146.21,37.36657101]
[1746637149999,6.8357,146.27,146.25,6.8363]
[1746637150401,7.82657101,146.29,146.21,37.36657101]
[1746637151703,29.52,146.31,146.21,29.54]
[1746637151899,6.8351,146.28,146.25,6.8363]
[1746637152305,29.52,146.31,146.25,6.8363]
[1746637153304,6.8353,146.28,146.25,6.8363]
[1746637154896,6.8353,146.28,146.21,29.54]
[1746637155805,6.8353,146.28,146.26,6.8359]
[1746637158307,29.52,146.31,146.27,6.8356]
[1746637158707,29.52,146.31,146.25,29.52]
[1746637158908,6.8345,146.3,146.25,29.52]
[1746637159608,6.8345,146.3,146.27,6.8352]
[1746637160202,6.8347,146.29,146.25,36.3562]
[1746637161103,6.8352,146.28,146.25,36.3562]
[1746637161311,29.52,146.31,146.25,36.3562]
[1746637161908,6.8354,146.28,146.25,36.3562]
[1746637162109,29.52,146.31,146.25,29.52]
[1746637163409,6.8361,146.26,146.25,29.52]
[1746637163802,29.52,146.31,146.22,29.52]
[1746637164309,29.52,146.31,146.22,36.3577]
[1746637164504,29.52,146.31,146.22,29.52]
[1746637165013,6.8354,146.28,146.24,6.8366]
[1746637165809,6.8354,146.28,146.25,6.8365]
[1746637167109,29.52,146.31,146.25,6.8365]
[1746637168411,6.8354,146.28,146.25,6.8365]
[1746637169313,6.8354,146.28,146.26,6.836]
[1746637169612,6.8349,146.29,146.26,6.836]
[1746637170212,6.8352,146.28,146.26,6.836]
[1746637174111,6.8349,146.29,146.27,6.8356]
[1746637175117,6.8351,146.28,146.27,6.8356]
[1746637175416,12.21621314,146.32,146.27,6.8356]
[1746637175817,6.835,146.29,146.27,6.8356]
[1746637179121,6.835,146.29,146.24,9.94241314]
[1746637179424,6.8352,146.28,146.24,9.94241314]
[1746637180521,6.8352,146.28,146.26,6.8356]
[1746637183927,7.82341314,146.3,146.24,31.599]
[1746637185525,6.8353,146.28,146.24,31.599]
[1746637186323,6.8353,146.28,146.25,6.8364]
[1746637186731,6.8353,146.28,146.24,31.599]
[1746637187129,6.8353,146.28,146.26,6.836]
[1746637195933,6.8349,146.29,146.27,6.8356]
[1746637196133,12.21621314,146.32,146.24,39.42241314]
[1746637196526,12.21621314,146.32,146.28,6.8349]
[1746637197332,6.8344,146.3,146.27,6.8353]
[1746637198233,6.8348,146.29,146.27,6.8353]
[1746637199732,6.8348,146.29,146.28,6.8351]
[1746637199940,6.8344,146.3,146.28,6.8351]
[1746637200332,29.44,146.36,146.28,37.26341314]
[1746637200523,6.8325,146.34,146.3,7.82341314]
[1746637200727,7.82341314,146.37,146.3,7.82341314]
[1746637201034,6.8321,146.35,146.32,6.833]
[1746637202431,13.6588,146.41,146.34,7.82341314]
[1746637202432,7.82341314,146.41,146.34,7.82341314]
[1746637202628,43.64031314,146.42,146.36,7.82341314]
[1746637202833,43.64031314,146.42,146.38,6.8304]
[1746637203030,43.64031314,146.42,146.36,37.26341314]
[1746637203231,43.64031314,146.42,146.36,29.44]
[1746637203430,6.8302,146.39,146.36,29.44]
[1746637203733,43.64031314,146.42,146.36,29.44]
[1746637203933,6.8298,146.4,146.36,29.44]
[1746637205333,6.83,146.39,146.36,29.44]
[1746637205530,7.82341314,146.38,146.33,29.44]
[1746637205727,12.21697293,146.4,146.33,29.44]
[1746637206031,12.21697293,146.4,146.3,29.44]
[1746637206531,6.8332,146.33,146.3,36.2741]
[1746637206733,29.42,146.38,146.3,36.2741]
[1746637207332,29.42,146.38,146.3,29.44]
[1746637208530,12.21697293,146.37,146.3,29.44]
[1746637208926,2.0997,146.36,146.3,29.44]
[1746637209130,6.8331,146.33,146.3,29.44]
[1746637209833,6.8331,146.33,146.3,36.2741]
[1746637210236,6.8333,146.32,146.3,29.44]
[1746637210636,2.0997,146.36,146.3,29.44]
[1746637210936,6.8337,146.31,146.27,29.42]
[1746637211134,29.42,146.34,146.27,29.42]
[1746637211336,41.63697293,146.34,146.27,29.42]
[1746637212037,29.42,146.34,146.27,29.42]
[1746637212335,2.0997,146.36,146.27,29.42]
[1746637212836,2.0997,146.36,146.32,6.833]
[1746637213036,2.0997,146.36,146.31,29.42]
[1746637213432,8.9314,146.36,146.31,29.42]
[1746637213936,8.9314,146.36,146.32,6.833]
[1746637215036,8.9314,146.36,146.33,6.8328]
[1746637215837,2.1765,146.41,146.31,41.63697293]
[1746637216138,2.1765,146.41,146.32,4.2635]
[1746637216332,6.8299,146.4,146.37,6.8309]
[1746637216529,2.169,146.42,146.36,29.42]
[1746637216940,6.8293,146.41,146.36,29.42]
[1746637217138,2.169,146.42,146.36,29.42]
[1746637217636,2.169,146.42,146.4,6.8292]
[1746637218637,2.169,146.42,146.41,6.8291]
[1746637218842,1.9896,146.47,146.4,29.42]
[1746637219045,1.9896,146.47,146.41,29.42]
[1746637219242,6.8274,146.45,146.42,6.8283]
[1746637220042,6.8274,146.45,146.41,36.2489]
[1746637220240,6.8277,146.44,146.41,36.2489]
[1746637220631,1.9896,146.47,146.41,29.42]
[1746637220940,14.20657293,146.47,146.37,29.42]
[1746637221238,12.21697293,146.44,146.37,29.42]
[1746637221439,29.42,146.44,146.37,29.42]
[1746637222039,6.8282,146.43,146.39,6.8299]
[1746637222342,1.9896,146.47,146.37,29.42]
[1746637222543,1.9896,146.47,146.4,6.8292]
[1746637222743,1.9896,146.47,146.41,29.42]
[1746637223039,6.8279,146.44,146.41,29.42]
[1746637223237,6.8279,146.44,146.41,36.249]
[1746637223944,6.8279,146.44,146.41,29.42]
[1746637224340,6.8274,146.45,146.41,29.42]
[1746637225345,6.8277,146.44,146.41,29.42]
[1746637226136,6.8277,146.44,146.41,36.2488]
[1746637229144,6.8274,146.45,146.42,6.8285]
[1746637229643,6.8277,146.44,146.41,36.2488]
[1746637230345,6.8282,146.43,146.41,29.42]
[1746637230846,1.9896,146.47,146.41,29.42]
[1746637231036,12.21697293,146.46,146.38,29.38]
[1746637232947,6.8298,146.4,146.38,29.38]
[1746637233346,29.38,146.44,146.38,29.38]
[1746637233544,2.1119,146.43,146.38,29.38]
[1746637233744,2.1119,146.43,146.35,29.38]
[1746637234450,6.8298,146.4,146.37,6.8307]
[1746637236849,6.83,146.39,146.37,6.8307]
[1746637237448,6.8298,146.4,146.37,6.8307]
[1746637237643,14.32887293,146.43,146.35,29.38]
[1746637238250,6.8304,146.39,146.35,36.2115]
[1746637238548,6.8304,146.39,146.35,29.38]
[1746637239349,6.8305,146.38,146.36,6.8314]
[1746637239851,6.8305,146.38,146.35,36.2116]
[1746637240551,6.8302,146.39,146.36,6.8313]
[1746637241344,2.1119,146.43,146.35,29.38]
[1746637242451,14.32887293,146.43,146.36,6.8311]
[1746637243851,6.8305,146.38,146.36,6.8311]
[1746637244652,6.8302,146.39,146.36,6.8311]
[1746637245550,6.8305,146.38,146.36,6.8311]
[1746637247254,6.8305,146.38,146.35,36.2117]
[1746637247649,6.831,146.37,146.35,36.2117]
[1746637247848,2.1053,146.42,146.35,29.38]
[1746637248050,2.1746,146.41,146.35,29.38]
[1746637248350,29.38,146.44,146.35,29.38]
[1746637248954,31.5546,146.47,146.35,29.38]
[1746637249255,6.8279,146.44,146.35,41.59697293]
[1746637250044,6.8274,146.45,146.35,41.59697293]
[1746637250248,6.8274,146.45,146.38,12.21697293]
[1746637250453,6.8264,146.47,146.44,6.8276]
[1746637250757,29.38,146.53,146.44,29.38]
[1746637250943,29.38,146.53,146.45,4.3465]
[1746637251147,6.8259,146.48,146.46,6.8267]
[1746637251551,29.38,146.53,146.46,6.8267]
[1746637251759,12.21697293,146.54,146.46,6.8267]
[1746637252056,6.8256,146.49,146.46,6.8267]
[1746637252251,6.8256,146.49,146.47,6.8262]
[1746637252751,45.16,146.56,146.47,6.8262]
[1746637252952,29.38,146.56,146.49,6.825]
[1746637253154,45.74407293,146.59,146.48,29.38]
[1746637253347,47.10842247,146.59,146.48,29.38]
[1746637253551,12.21697293,146.56,146.48,29.38]
[1746637254757,6.825,146.5,146.48,29.38]
[1746637255351,6.8253,146.49,146.48,29.38]
[1746637258659,6.8253,146.49,146.45,6.8271]
[1746637258860,6.8253,146.49,146.46,29.34]
[1746637259059,6.8253,146.49,146.46,36.1665]
[1746637259760,6.8253,146.49,146.46,6.8265]
[1746637259959,6.8253,146.49,146.46,36.1665]
[1746637262861,6.8261,146.48,146.46,29.34]
[1746637264264,6.8255,146.49,146.46,36.1667]
[1746637265660,6.8251,146.5,146.47,6.8262]
[1746637265858,2.0896,146.54,146.46,29.34]
[1746637266059,29.36,146.55,146.46,29.34]
[1746637266554,29.36,146.55,146.49,6.825]
[1746637266759,29.36,146.55,146.46,29.34]
[1746637267464,6.8249,146.5,146.47,6.826]
[1746637269268,6.8253,146.49,146.47,6.826]
[1746637270563,6.8253,146.49,146.46,36.1665]
[1746637270866,6.825,146.5,146.46,29.34]
[1746637271263,6.825,146.5,146.47,6.826]
[1746637271668,6.825,146.5,146.46,29.34]
[1746637271866,6.825,146.5,146.48,6.8255]
[1746637272966,29.36,146.55,146.46,29.34]
[1746637273462,6.8242,146.52,146.5,6.8246]
[1746637273770,6.8242,146.52,146.46,29.34]
[1746637274467,6.8242,146.52,146.49,6.8251]
[1746637274770,6.8242,146.52,146.46,29.34]
[1746637275069,6.8242,146.52,146.5,6.8245]
[1746637276568,6.8245,146.51,146.49,6.8251]
[1746637276867,29.36,146.55,146.49,6.8251]
[1746637277271,6.8242,146.52,146.49,6.8251]
[1746637278169,6.8237,146.53,146.5,6.8247]
[1746637278569,29.36,146.55,146.5,6.8247]
[1746637278769,6.8239,146.53,146.5,6.8247]
[1746637280473,6.824,146.52,146.5,6.8247]
[1746637281374,6.8244,146.51,146.49,6.8251]
[1746637281571,6.8244,146.51,146.46,29.34]
[1746637281770,6.8244,146.51,146.48,6.8255]
[1746637282275,6.8244,146.51,146.46,29.34]
[1746637282469,6.8244,146.51,146.48,6.8254]
[1746637283374,6.8251,146.5,146.47,6.826]
[1746637283566,12.21697293,146.53,146.46,29.34]
[1746637283767,2.0355,146.52,146.46,29.34]
[1746637284677,8.8599,146.52,146.48,6.8255]
[1746637284977,2.0355,146.52,146.48,6.8255]
[1746637285167,6.8249,146.5,146.48,6.8255]
[1746637285577,2.0355,146.52,146.48,6.8255]
[1746637285777,6.8247,146.51,146.48,6.8255]
[1746637288682,2.0355,146.52,146.46,29.34]
[1746637289884,12.21697293,146.56,146.46,29.34]
[1746637290381,6.8236,146.53,146.46,29.34]
[1746637290578,12.21697293,146.56,146.46,29.34]
[1746637290883,6.8236,146.53,146.5,6.8244]
[1746637291084,6.8236,146.53,146.5,36.1244]
[1746637291484,12.21697293,146.56,146.5,36.1244]
[1746637291782,12.21697293,146.56,146.5,29.3]
[1746637292282,6.824,146.52,146.5,29.3]
[1746637293780,6.824,146.52,146.5,36.1248]
[1746637294086,6.8236,146.53,146.5,36.1248]
[1746637294385,12.21697293,146.56,146.5,36.1248]
[1746637294579,12.21697293,146.56,146.5,29.3]
[1746637295286,6.8243,146.52,146.5,29.3]
[1746637295778,6.8244,146.51,146.5,29.3]
[1746637296681,12.21697293,146.56,146.47,29.3]
[1746637296883,12.21697293,146.53,146.47,36.1262]
[1746637297185,2.1586,146.52,146.47,36.1262]
[1746637297482,2.1586,146.52,146.47,29.3]
[1746637297685,4.2124,146.51,146.47,29.3]
[1746637298087,6.826,146.48,146.44,36.1274]
[1746637298283,6.826,146.48,146.44,29.3]
[1746637298783,6.8255,146.49,146.45,6.827]
[1746637298983,4.2124,146.51,146.45,6.827]
[1746637299184,4.2124,146.51,146.44,29.3]
[1746637299982,6.8249,146.5,146.46,6.8267]
[1746637300183,4.2124,146.51,146.44,29.3]
[1746637300685,4.2124,146.51,146.46,6.8264]
[1746637301077,4.2124,146.51,146.44,29.3]
[1746637301283,6.8252,146.5,146.47,6.8262]
[1746637303485,4.2124,146.51,146.44,29.3]
[1746637304385,4.2124,146.51,146.46,6.8265]
[1746637304386,6.8255,146.49,146.46,6.8265]
[1746637310592,6.8251,146.5,146.47,6.8258]
[1746637310897,4.2124,146.51,146.44,29.3]
[1746637311197,6.8251,146.5,146.47,6.826]
[1746637311596,4.2124,146.51,146.44,29.3]
[1746637311803,6.8254,146.49,146.46,6.8265]
[1746637312100,4.2124,146.51,146.46,6.8265]
[1746637312299,4.2124,146.51,146.44,29.3]
[1746637312493,6.826,146.48,146.45,6.8271]
[1746637314094,6.8263,146.47,146.45,6.8271]
[1746637315100,6.8263,146.47,146.44,36.1274]
[1746637317199,6.8268,146.46,146.44,36.1274]
[1746637319102,6.8272,146.45,146.44,29.3]
[1746637319503,4.2124,146.51,146.44,29.3]
[1746637319805,4.2124,146.51,146.44,36.1277]
[1746637320306,6.8265,146.47,146.44,36.1277]
[1746637320701,6.8265,146.47,146.45,6.8271]
[1746637321706,6.8265,146.47,146.44,36.1274]
[1746637323406,6.8267,146.46,146.44,36.1274]
[1746637323907,6.8264,146.47,146.44,36.1274]
[1746637325309,6.8268,146.46,146.44,36.1274]
[1746637325808,6.8268,146.46,146.44,29.3]
[1746637327007,6.8268,146.46,146.44,36.1275]
[1746637327209,6.8268,146.46,146.44,29.3]
[1746637327502,6.8272,146.45,146.44,29.3]
[1746637327909,6.8262,146.48,146.44,29.3]
[1746637328102,6.8262,146.48,146.45,6.8271]
[1746637328408,6.8263,146.47,146.45,6.8271]
[1746637329010,6.8263,146.47,146.44,36.1274]
[1746637330513,12.21697293,146.5,146.44,29.3]
[1746637331011,6.827,146.46,146.44,29.3]
[1746637334011,6.8265,146.47,146.44,36.1276]
[1746637334317,12.21697293,146.5,146.44,36.1276]
[1746637335917,6.8267,146.47,146.44,36.1276]
[1746637336111,12.21697293,146.5,146.44,29.3]
[1746637336618,6.8268,146.46,146.44,29.3]
[1746637337017,12.21697293,146.5,146.44,36.1274]
[1746637337216,6.8265,146.47,146.44,36.1274]
[1746637337920,6.8259,146.48,146.45,6.8268]
[1746637338123,6.8259,146.48,146.44,29.3]
[1746637338522,6.8259,146.48,146.45,6.8269]
[1746637339017,2.1586,146.52,146.44,29.3]
[1746637339520,6.8246,146.51,146.48,6.8256]
[1746637340122,6.825,146.5,146.48,6.8256]
[1746637340322,6.825,146.5,146.47,6.8262]
[1746637340621,6.825,146.5,146.44,29.3]
[1746637340622,2.1586,146.52,146.44,29.3]
[1746637340817,6.8256,146.49,146.44,29.3]
[1746637341422,6.8256,146.49,146.45,6.8268]
[1746637341620,6.8259,146.48,146.45,6.8268]
[1746637342922,6.8259,146.48,146.46,6.8267]
[1746637343823,6.8256,146.49,146.46,6.8267]
[1746637344525,6.825,146.5,146.44,29.3]
[1746637345125,6.825,146.5,146.47,6.8259]
[1746637345824,2.1586,146.52,146.46,6.8265]
[1746637346029,2.1586,146.52,146.44,29.3]
[1746637346224,6.8267,146.47,146.44,29.3]
[1746637346422,2.1321,146.51,146.44,36.1275]
[1746637347728,12.21697293,146.5,146.44,29.3]
[1746637347930,12.21697293,146.5,146.43,6.8279]
[1746637348326,6.8269,146.46,146.43,6.8279]
[1746637348729,6.8273,146.45,146.43,6.8279]
[1746637349631,6.827,146.46,146.43,6.8279]
[1746637352031,6.8273,146.45,146.42,6.8284]
[1746637352233,29.26,146.49,146.41,29.28]
[1746637352833,6.8279,146.44,146.41,36.1088]
[1746637353334,6.8283,146.43,146.41,36.1088]
[1746637353730,29.26,146.49,146.41,36.1088]
[1746637354337,6.8279,146.44,146.41,36.1088]
[1746637356339,6.8281,146.43,146.41,36.1088]
[1746637357440,6.828,146.44,146.41,36.1088]
[1746637359741,6.8281,146.43,146.41,36.1088]
[1746637361238,6.8279,146.44,146.41,36.1088]
[1746637363346,6.8279,146.44,146.42,6.8284]
[1746637363645,6.8274,146.45,146.42,6.8284]
[1746637363943,29.26,146.49,146.42,6.8284]
[1746637364145,29.26,146.49,146.41,29.28]
[1746637364146,6.8268,146.46,146.43,6.8279]
[1746637366347,6.8268,146.46,146.41,29.28]
[1746637366348,6.8268,146.46,146.44,6.8276]
[1746637367047,6.8264,146.47,146.44,6.8276]
[1746637367750,6.8267,146.46,146.44,6.8276]
[1746637367947,29.26,146.49,146.44,6.8276]
[1746637368448,6.8267,146.46,146.44,6.8276]
[1746637369751,6.8265,146.47,146.44,6.8276]
[1746637370150,29.26,146.49,146.44,6.8276]
[1746637370351,6.8268,146.46,146.43,6.8279]
[1746637370651,6.8268,146.46,146.41,29.28]
[1746637371251,6.8265,146.47,146.44,6.8276]
[1746637371749,7.80779193,146.46,146.44,6.8276]
[1746637375453,7.80779193,146.46,146.41,29.28]
[1746637375651,7.80779193,146.44,146.41,29.28]
[1746637376248,7.80779193,146.44,146.42,6.8283]
[1746637378557,14.63579193,146.44,146.41,36.1089]
[1746637381254,6.8283,146.43,146.41,36.1089]
[1746637381758,6.8286,146.42,146.38,29.24]
[1746637381959,7.80779193,146.41,146.38,29.24]
[1746637382361,6.8295,146.4,146.38,36.0702]
[1746637387165,6.83,146.39,146.38,29.24]
[1746637387365,7.80779193,146.41,146.35,29.24]
[1746637387767,6.8307,146.38,146.35,36.0715]
[1746637388065,6.8307,146.38,146.35,29.24]
[1746637388966,6.8307,146.38,146.36,6.8314]
[1746637389766,6.8309,146.37,146.35,36.0718]
[1746637390865,6.8309,146.37,146.35,29.24]
[1746637391364,6.8314,146.36,146.35,29.24]
[1746637393865,6.8314,146.36,146.3,9.83129193]
[1746637394067,7.80779193,146.38,146.34,6.8323]
[1746637394258,6.8312,146.37,146.34,6.8323]